bitfinex/quotes_ETHUSD_20250708
["timestamp","ask_amount","ask_price","bid_price","bid_amount"]
[1751983923571,1e-08,2580.0,2579.9,25.86347442]
[1751983923803,1e-08,2580.0,2579.9,27.37471323]
[1751983924705,1e-08,2580.0,2579.9,16.84801922]
[1751983924909,1e-08,2580.0,2579.9,14.74801922]
[1751983925079,1e-08,2580.0,2579.9,6.77958243]
[1751983925275,1e-08,2580.0,2579.9,4.74801922]
[1751983925480,1e-08,2580.0,2579.9,4.78678041]
[1751983925676,1e-08,2580.0,2579.9,14.74801922]
[1751983925882,1e-08,2580.0,2579.9,25.82471323]
[1751983928311,1e-08,2580.0,2579.9,33.50371323]
[1751983928536,1e-08,2580.0,2579.9,26.8259117]
[1751983928823,1e-08,2580.0,2579.9,26.2729117]
[1751983928981,1e-08,2580.0,2579.9,18.5969117]
[1751983929182,1e-08,2580.0,2579.9,20.87301922]
[1751983930816,1e-08,2580.0,2579.9,21.42301922]
[1751983932541,1e-08,2581.1,2581.0,15.14016726]
[1751983932739,1e-08,2581.1,2581.0,33.34686127]
[1751983933034,1e-08,2581.1,2581.0,33.54046127]
[1751983933240,0.0851281,2581.9,2581.8,3.87326671]
[1751983933390,0.0851281,2581.9,2581.8,10.20086671]
[1751983933585,0.0851281,2581.9,2581.8,10.19886671]
[1751983934332,2.4318,2582.5,2582.1,3.87277363]
[1751983934493,2.5263202,2582.5,2582.3,0.1936]
[1751983935200,0.9763202,2582.5,2582.4,3.87236679]
[1751983935530,0.9763202,2582.5,2582.4,11.02653808]
[1751983935531,0.0945202,2582.5,2582.4,11.02653808]
[1751983935762,0.0945202,2582.5,2582.4,10.19796679]
[1751983936170,0.0945202,2582.5,2582.4,4.06596679]
[1751983936368,0.0945202,2582.5,2582.4,10.19896679]
[1751983937357,0.0945202,2582.5,2582.4,0.1936]
[1751983937554,0.0945202,2582.5,2582.4,6.3276]
[1751983938744,0.9995202,2582.5,2582.4,0.1936]
[1751983940180,4.87173704,2582.5,2582.4,0.1936]
[1751983940382,0.9995202,2582.5,2582.4,0.1936]
[1751983940579,4.87173704,2582.5,2582.4,0.1936]
[1751983940880,3.87237731,2582.4,2582.1,6.138]
[1751983941084,3.87237731,2582.4,2582.3,0.1936]
[1751983941255,3.96689751,2582.4,2582.3,0.1936]
[1751983941450,0.0945202,2582.4,2582.3,0.1936]
[1751983942562,3.96688699,2582.4,2582.3,0.1936]
[1751983942761,3.96688699,2582.4,2581.9,6.138]
[1751983942762,0.96914128,2582.4,2581.9,6.138]
[1751983942967,4.84154247,2582.4,2582.1,0.1936]
[1751983943287,3.87266671,2582.2,2582.1,0.1936]
[1751983943894,3.8725608,2582.3,2582.1,0.1936]
[1751983944181,3.87266671,2582.2,2582.1,0.1936]
[1751983944386,3.96718691,2582.2,2582.1,0.1936]
[1751983944588,0.0945202,2582.2,2582.1,0.1936]
[1751983945691,16.3104017,2582.2,2582.1,0.1936]
[1751983945877,3.87373018,2581.5,2581.0,3.87438546]
[1751983946078,3.87378553,2581.5,2580.6,0.9169]
[1751983946294,3.88079633,2581.5,2580.6,4.79188249]
[1751983946501,0.9218,2581.1,2580.4,0.9169]
[1751983946798,3.87453786,2581.0,2580.5,3.87521798]
[1751983946964,0.9218,2581.4,2580.4,7.54015286]
[1751983947290,3.87418075,2581.2,2580.7,3.87483355]
[1751983947496,3.87455561,2581.0,2580.5,3.87513135]
[1751983947707,3.87432915,2581.1,2580.6,4.40209998]
[1751983947860,3.87447293,2581.0,2580.6,0.52712842]
[1751983948066,10.9288739,2581.4,2580.4,7.54115286]
[1751983948067,3.874691,2580.9,2580.4,7.54115286]
[1751983948368,0.0070739,2580.9,2580.4,11.4164579]
[1751983948608,0.0070739,2580.9,2580.5,3.87514025]
[1751983948966,0.0070739,2580.9,2580.6,3.91373865]
[1751983949164,0.0070739,2580.9,2580.6,1.533015]
[1751983949357,4.79664963,2580.8,2580.3,3.87544348]
[1751983949758,0.9218,2580.8,2580.2,6.142]
[1751983950001,0.9218,2580.8,2580.5,3.87520349]
[1751983950210,0.9218,2580.8,2580.3,3.87551835]
[1751983950373,0.9218,2580.8,2580.5,3.87509012]
[1751983951068,0.9218,2580.8,2580.4,3.87529152]
[1751983951272,0.9218,2580.8,2580.5,3.87518393]
[1751983951709,0.0070739,2580.9,2580.5,3.87512342]
[1751983952012,0.0070739,2580.9,2580.6,0.93275067]
[1751983952178,0.0070739,2580.9,2580.8,3.87476751]
[1751983952380,0.0070739,2580.9,2580.8,14.78021518]
[1751983952600,0.0070739,2580.9,2580.8,17.37526601]
[1751983952973,0.0070739,2580.9,2580.8,23.52126601]
[1751983953473,0.0070739,2580.9,2580.8,7.37526601]
[1751983953668,0.0070739,2580.9,2580.8,4.74146751]
[1751983953896,0.0070739,2580.9,2580.8,10.88446751]
[1751983954207,0.0070739,2580.9,2580.8,3.87476751]
[1751983954367,0.0070739,2580.9,2580.7,3.87485773]
[1751983954784,0.0070739,2580.9,2580.8,3.87476751]
[1751983954999,0.0070739,2580.9,2580.7,3.8748441]
[1751983955204,0.0070739,2580.9,2580.5,3.87521798]
[1751983955376,0.9261,2580.6,2580.1,1.544]
[1751983955589,0.9261,2580.6,2579.6,2.4765]
[1751983955906,0.9261,2580.6,2580.2,0.1936]
[1751983955907,5.47498015,2580.6,2580.2,0.1936]
[1751983956070,3.87548286,2580.4,2580.2,0.1936]
[1751983956271,3.87521798,2580.5,2580.2,0.1936]
[1751983956472,3.87535104,2580.5,2580.2,0.1936]
[1751983957672,1.59980501,2580.6,2580.2,0.1936]
[1751983957879,3.87545466,2580.4,2580.2,0.1936]
[1751983958080,3.87551835,2580.3,2579.8,3.87616448]
[1751983958294,4.06903371,2580.4,2580.0,0.1936]
[1751983958915,0.1936,2580.4,2580.0,0.1936]
[1751983959215,6.14,2580.5,2580.1,3.8757404]
[1751983959417,10.01521889,2580.5,2580.2,0.1936]
[1751983959616,3.87539177,2580.4,2580.2,0.1936]
[1751983960021,11.21159775,2580.5,2580.2,0.1936]
[1751983960799,21.20757593,2580.5,2580.2,0.1936]
[1751983961728,3.87538221,2580.4,2580.2,0.1936]
[1751983962030,17.33232094,2580.5,2579.5,3.8766587]
[1751983962334,3.87559389,2580.3,2580.0,0.1936]
[1751983963029,1.06501479,2580.4,2580.0,4.06953477]
[1751983963229,7.0561,2580.6,2579.5,0.62890587]
[1751983963534,13.87522515,2580.5,2580.2,0.1936]
[1751983963704,10.0,2580.4,2580.2,0.1936]
[1751983964128,3.87536883,2580.4,2580.2,0.1936]
[1751983964434,14.42551835,2580.3,2580.2,0.1936]
[1751983964631,14.06926855,2580.2,2580.1,0.001]
[1751983964937,20.19526855,2580.2,2580.1,0.001]
[1751983966061,21.68936855,2580.2,2580.1,0.001]
[1751983966211,26.73719006,2580.2,2580.1,0.001]
[1751983968120,20.61119006,2580.2,2580.1,0.001]
[1751983968321,15.1377,2580.2,2580.1,0.001]
[1751983968522,14.9441,2580.2,2580.1,0.001]
[1751983968722,20.121,2580.2,2580.1,0.001]
[1751983968921,10.121,2580.2,2580.1,4.07041876]
[1751983969126,4.0,2580.2,2580.1,0.1946]
[1751983969325,10.0,2580.4,2580.1,0.1946]
[1751983969550,6.12,2580.3,2580.2,3.87556977]
[1751983969719,6.12,2580.3,2580.1,4.07035654]
[1751983969919,10.0,2580.5,2580.2,3.87566855]
[1751983970126,6.12,2580.4,2580.2,3.87566855]
[1751983970327,0.8791,2580.6,2580.2,0.79460835]
[1751983970532,6.119,2580.5,2580.4,3.87532506]
[1751983970921,10.0,2580.6,2580.4,4.06892506]
[1751983971323,2.4478739,2580.9,2580.6,3.87494833]
[1751983971541,2.4478739,2580.9,2580.7,0.1936]
[1751983971542,10.0,2580.8,2580.7,0.1936]
[1751983971854,14.0,2580.8,2580.7,0.1936]
[1751983972520,20.114,2580.8,2580.7,0.1936]
[1751983972923,16.114,2580.8,2580.7,0.1936]
[1751983974456,3.8749217,2580.7,2580.2,3.87559496]
[1751983974761,9.99006781,2580.6,2580.5,0.1936]
[1751983975059,6.115,2580.6,2580.5,0.1936]
[1751983975232,6.115,2580.6,2580.5,4.06881798]
[1751983975632,0.9068739,2580.9,2580.5,4.06879074]
[1751983975834,6.113,2580.8,2580.5,4.06879074]
[1751983976051,0.9068739,2580.9,2580.7,3.87485379]
[1751983976255,10.111,2580.8,2580.7,4.06851765]
[1751983976561,4.0,2580.8,2580.7,4.06851765]
[1751983976979,0.0070739,2580.9,2580.8,3.87476751]
[1751983977266,0.0070739,2580.9,2580.7,0.1936]
[1751983977436,6.1180739,2580.9,2580.7,0.1936]
[1751983977934,6.1180739,2580.9,2580.8,3.87476751]
[1751983978277,0.0070739,2580.9,2580.8,4.06836751]
[1751983979357,3.88169128,2580.9,2580.8,0.1936]
[1751983979560,10.38106041,2580.9,2580.3,0.9266]
[1751983979747,3.87487807,2580.8,2580.5,0.1936]
[1751983980064,3.87495521,2580.7,2580.5,0.1936]
[1751983980267,10.38112885,2580.9,2580.5,4.06881415]
[1751983980468,6.50644303,2580.9,2580.5,0.1936]
[1751983980640,3.87483628,2580.8,2580.5,0.1936]
[1751983981276,3.87506781,2580.6,2580.5,0.1936]
[1751983981745,4.82946855,2580.2,2580.1,0.001]
[1751983981945,33.38753193,2580.2,2580.1,0.001]
[1751983982167,37.9408311,2580.2,2580.1,0.001]
[1751983982343,38.10205174,2580.2,2580.1,0.001]
[1751983982973,0.9538,2579.4,2579.0,0.001]
[1751983983277,6.111,2579.3,2579.0,0.001]
[1751983983581,6.111,2579.3,2579.1,0.1936]
[1751983983972,6.112,2579.2,2579.1,0.1936]
[1751983984154,0.9538,2579.4,2579.1,0.1936]
[1751983984353,6.112,2579.3,2579.1,4.07089412]
[1751983984553,6.111,2579.6,2579.1,0.79504636]
[1751983984878,6.111,2579.6,2579.2,4.07073753]
[1751983985059,6.111,2579.6,2579.2,0.1936]
[1751983985256,6.111,2579.6,2579.3,3.87696684]
[1751983985457,6.111,2579.6,2579.5,4.07032029]
[1751983985776,0.1936,2580.0,2579.6,3.87649198]
[1751983985977,6.117,2579.9,2579.7,3.87640395]
[1751983986156,6.116,2580.2,2579.9,3.87609168]
[1751983986479,10.0,2580.1,2579.8,4.06980215]
[1751983986678,9.312,2580.3,2580.0,3.87589846]
[1751983986848,1.0602,2580.4,2580.0,0.1936]
[1751983986849,10.118,2580.1,2580.0,0.1936]
[1751983987047,10.23927555,2580.1,2580.0,0.1936]
[1751983987280,10.23927423,2580.1,2580.0,0.1936]
[1751983987482,6.118,2580.1,2580.0,4.06956899]
[1751983987654,6.118,2580.1,2580.0,0.1936]
[1751983987851,6.118,2580.1,2579.3,3.87794848]
[1751983987852,4.81397443,2579.8,2579.3,3.87794848]
[1751983988055,0.9377,2579.8,2579.6,0.1936]
[1751983988272,7.0537,2579.8,2579.6,0.1936]
[1751983989376,3.87641973,2579.7,2579.6,0.1936]
[1751983989591,3.87661043,2579.6,2579.3,0.001]
[1751983989807,9.9905747,2579.6,2579.3,0.1946]
[1751983990009,4.78007059,2579.4,2579.3,0.001]
[1751983990313,11.08867059,2579.4,2579.3,0.001]
[1751983991008,7.2118,2579.4,2579.3,0.001]
[1751983991178,12.53362239,2579.4,2579.3,0.001]
[1751983991671,8.6567518,2579.4,2579.3,0.001]
[1751983992365,7.89,2579.6,2579.3,0.001]
[1751983992575,4.0,2579.4,2579.3,0.1946]
[1751983992864,4.0,2579.4,2579.3,3.91679109]
[1751983993085,4.0,2579.4,2579.3,4.07162089]
[1751983993287,4.0,2579.4,2579.3,4.958928]
[1751983993465,6.115,2579.9,2579.6,3.87650083]
[1751983993662,4.0,2579.7,2579.6,3.87657001]
[1751983994078,6.115,2579.9,2579.6,4.07017001]
[1751983994500,6.115,2579.9,2579.6,0.1936]
[1751983994688,6.7265,2579.9,2579.6,0.1936]
[1751983994868,0.31927531,2579.8,2579.6,0.1936]
[1751983995202,6.7265,2579.9,2579.6,0.1936]
[1751983995570,6.115,2579.9,2579.7,3.87639617]
[1751983995807,6.115,2579.9,2579.6,0.1936]
[1751983996010,6.115,2579.9,2579.7,3.87634545]
[1751983996387,4.069448,2580.1,2579.6,4.07010183]
[1751983996583,7.50423029,2580.0,2579.6,4.07010183]
[1751983996898,9.99498455,2580.0,2579.6,0.1936]
[1751983997283,14.06950417,2580.1,2579.6,4.07015406]
[1751983997490,0.1936,2580.1,2579.8,3.87620399]
[1751983997789,6.116,2580.0,2579.9,4.06971922]
[1751983998136,6.116,2580.0,2579.9,0.1936]
[1751983998623,3.87642459,2579.7,2579.3,0.001]
[1751983998823,3.87687059,2579.4,2579.3,0.1946]
[1751983999023,6.114,2579.4,2579.3,0.1946]
[1751983999406,6.116,2579.4,2579.3,4.07153753]
[1751984000025,6.116,2579.4,2579.3,0.1946]
[1751984000827,6.116,2579.4,2579.3,4.07162089]
[1751984002035,6.113,2579.6,2579.3,0.1946]
[1751984002199,6.113,2579.6,2579.3,4.07160296]
[1751984002398,9.98958264,2579.6,2579.3,0.1946]
[1751984002604,3.87683538,2579.5,2579.3,0.1946]
[1751984002805,3.87687059,2579.4,2579.3,0.001]
[1751984003014,4.75617059,2579.4,2579.3,0.001]
[1751984004565,8.75617059,2579.4,2579.3,0.001]
[1751984004756,14.86317059,2579.4,2579.3,0.001]
[1751984006145,15.85126516,2579.4,2579.3,0.001]
[1751984006551,16.04486516,2579.4,2579.3,0.001]
[1751984010153,27.43440279,2579.4,2579.3,0.001]
[1751984011072,28.3082052,2579.4,2579.3,0.001]
[1751984012878,36.1982052,2579.4,2579.3,0.001]
[1751984013283,30.0912052,2579.4,2579.3,0.001]
[1751984013582,37.7182052,2579.4,2579.3,0.001]
[1751984014751,37.7162052,2579.4,2579.3,0.001]
[1751984015152,30.0912052,2579.4,2579.3,0.001]
[1751984015352,37.7162052,2579.4,2579.3,0.001]
[1751984015663,30.0912052,2579.4,2579.3,0.001]
[1751984015846,37.1642052,2579.4,2579.3,0.001]
[1751984016047,34.31430822,2579.4,2579.3,0.001]
[1751984016253,13.47313763,2579.4,2579.3,0.001]
[1751984016508,11.89,2579.4,2579.3,4.07162089]
[1751984016654,17.979,2579.4,2579.3,4.07162089]
[1751984016852,10.0,2579.7,2579.3,4.07162089]
[1751984017156,6.089,2579.6,2579.5,3.87660295]
[1751984017351,4.0,2579.6,2579.5,4.07020295]
[1751984017593,10.089,2579.6,2579.5,4.07020295]
[1751984017963,9.316,2580.0,2579.9,3.87611922]
[1751984018176,0.002,2580.1,2580.0,3.87596899]
[1751984018393,4.0,2580.0,2579.7,0.883]
[1751984018700,4.0,2580.0,2579.9,3.87604038]
[1751984018862,10.088,2580.0,2579.9,3.87604038]
[1751984019062,4.0,2580.0,2579.9,3.87604038]
[1751984019364,10.088,2580.0,2579.9,3.87604038]
[1751984019565,4.0,2580.0,2579.9,3.87604038]
[1751984019761,4.0,2580.0,2579.9,4.78716744]
[1751984019966,0.002,2580.1,2580.0,3.87596899]
[1751984020190,6.087,2580.1,2580.0,3.87596899]
[1751984020594,0.002,2580.1,2580.0,3.87596899]
[1751984022698,0.002,2580.1,2579.9,0.91112706]
[1751984022863,0.002,2580.1,2580.0,3.87596899]
[1751984024197,0.002,2580.1,2580.0,4.80222867]
[1751984024408,0.002,2580.1,2580.0,4.76346899]
[1751984025683,0.002,2580.1,2580.0,3.87596899]
[1751984026269,0.002,2580.1,2579.8,0.9086]
[1751984026474,0.002,2580.1,2579.8,4.78483722]
[1751984027701,0.002,2580.1,2579.9,3.87611918]
[1751984027898,0.002,2580.1,2580.0,3.87596899]
[1751984028090,0.002,2580.1,2580.0,4.06956899]
[1751984029509,0.002,2580.1,2580.0,0.1936]
[1751984029882,0.002,2580.1,2580.0,4.06956899]
[1751984030413,0.002,2580.1,2580.0,0.1936]
[1751984032675,0.002,2580.1,2580.0,4.06956899]
[1751984034985,0.002,2580.1,2580.0,5.77659426]
[1751984035183,0.002,2580.1,2580.0,5.73783458]
[1751984035706,0.002,2580.1,2580.0,4.86413458]
[1751984036697,0.002,2580.1,2580.0,4.90289426]
[1751984037134,0.002,2580.1,2580.0,5.81439426]
[1751984038296,0.002,2580.8,2580.7,4.77771765]
[1751984038605,0.002,2580.8,2580.7,5.49409748]
[1751984039148,0.002,2580.8,2580.7,5.45534831]
[1751984040198,1e-08,2580.8,2580.7,5.49409748]
[1751984040802,1e-08,2580.8,2580.7,5.45534831]
[1751984041004,1e-08,2580.8,2580.7,11.53334831]
[1751984042116,1e-08,2580.8,2580.7,5.45534831]
[1751984042319,1e-08,2580.8,2580.7,11.53334831]
[1751984043543,0.002,2581.1,2580.7,11.53334831]
[1751984043544,0.002,2581.1,2581.0,4.75556726]
[1751984043749,1.5908259,2581.9,2581.7,3.87339222]
[1751984043923,0.0738259,2581.9,2581.8,4.06686671]
[1751984045730,0.0738259,2581.9,2581.8,0.1936]
[1751984046438,3.87289507,2582.1,2581.8,0.55427384]
[1751984046628,2.55066289,2582.1,2581.8,0.55427384]
[1751984046827,0.1936,2582.2,2581.8,0.55427384]
[1751984047029,1.38458679,2582.1,2581.9,0.36067384]
[1751984047276,1.38458679,2582.0,2581.9,3.87311669]
[1751984047419,1.38458679,2582.0,2581.9,4.42713199]
[1751984047733,1.38458679,2582.0,2581.9,1.47204262]
[1751984047940,1.38458679,2582.0,2581.9,0.553973]
[1751984048138,1.74502784,2582.0,2581.9,0.1936]
[1751984048339,3.87259789,2582.3,2581.9,0.55401339]
[1751984048558,1.74396971,2582.2,2582.0,0.36041339]
[1751984048755,5.61684864,2582.1,2581.6,10.84349298]
[1751984049073,1.74396971,2582.0,2581.7,0.3602476]
[1751984049229,3.87260035,2582.3,2581.6,8.0543493]
[1751984049435,3.87260035,2582.3,2581.9,0.1936]
[1751984049672,24.84217136,2582.4,2582.1,0.1936]
[1751984049853,2.31045786,2582.4,2582.1,0.8824]
[1751984050034,16.18474856,2582.5,2582.3,0.1936]
[1751984050637,16.18474856,2582.5,2581.9,0.8824]
[1751984050638,12.31245786,2582.5,2581.9,0.8824]
[1751984050838,2.31245786,2582.5,2582.4,0.1936]
[1751984051033,4.002,2582.5,2582.4,0.1936]
[1751984051535,4.002,2582.5,2582.4,5.00316679]
[1751984051736,14.002,2582.5,2582.4,0.1936]
[1751984052065,14.002,2582.5,2581.9,3.87304976]
[1751984052066,3.87250327,2582.4,2581.9,3.87304976]
[1751984052267,3.87267783,2582.2,2581.4,6.9948]
[1751984052474,3.87267783,2582.2,2582.1,0.1936]
[1751984052968,1.91671716,2582.3,2582.1,0.1936]
[1751984052969,5.78925691,2582.3,2582.1,0.1936]
[1751984053173,1.91671716,2582.3,2582.1,0.1936]
[1751984053545,0.03872683,2582.3,2582.1,0.1936]
[1751984053744,0.002,2582.2,2582.1,0.1936]
[1751984053946,3.87466671,2582.2,2582.1,0.1936]
[1751984055158,0.002,2582.2,2582.1,0.1936]
[1751984055339,3.87466671,2582.2,2582.1,0.1936]
[1751984055776,14.88429497,2582.2,2582.1,0.1936]
[1751984055991,0.9234,2582.1,2581.8,0.1936]
[1751984056277,3.91176369,2582.0,2581.8,0.1936]
[1751984056475,0.03872683,2582.0,2581.8,0.1936]
[1751984057971,0.9234,2582.1,2581.8,0.1936]
[1751984058561,0.9234,2582.1,2581.8,4.066842]
[1751984058868,21.15196285,2582.2,2581.8,0.1936]
[1751984059250,17.08562826,2582.2,2581.8,3.8732038]
[1751984059450,11.01162826,2582.2,2582.0,0.1936]
[1751984059691,10.002,2582.2,2582.0,0.1936]
[1751984060472,0.35989853,2582.1,2582.0,0.1936]
[1751984060672,0.35989853,2582.1,2582.0,4.06656669]
[1751984061975,0.35989853,2582.1,2582.0,0.1936]
[1751984063479,0.35989853,2582.1,2582.0,4.06656669]
[1751984063681,0.35989853,2582.1,2582.0,0.1936]
[1751984063983,0.35989853,2582.1,2582.0,4.06656669]
[1751984064554,0.35989853,2582.1,2582.0,0.1936]
[1751984064988,0.35989853,2582.1,2582.0,4.06656669]
[1751984066386,0.35989853,2582.1,2582.0,3.79491234]
[1751984066756,0.35989853,2582.1,2582.0,0.1936]
[1751984067499,0.35989853,2582.1,2582.0,4.06656669]
[1751984067865,0.35989853,2582.1,2582.0,0.1936]
[1751984068193,0.35989853,2582.1,2582.0,4.06656669]
[1751984069678,0.35989853,2582.1,2582.0,5.75823226]
[1751984070283,7.33659853,2582.1,2581.2,3.45295439]
[1751984070497,7.33659853,2582.1,2581.2,3.87412121]
[1751984070498,3.87341674,2581.7,2581.2,3.87412121]
[1751984070668,0.35989853,2581.6,2581.5,0.1936]
[1751984070992,1.26052536,2581.6,2581.0,2.32058463]
[1751984071211,0.72217977,2581.5,2580.9,3.25128463]
[1751984071374,3.87433465,2581.1,2580.6,4.81275482]
[1751984071561,6.9399,2581.1,2580.9,0.1936]
[1751984071761,0.03872683,2581.0,2580.9,0.1936]
[1751984072003,0.03872683,2581.0,2580.7,0.1936]
[1751984073526,3.87470344,2580.9,2580.7,0.1936]
[1751984073730,3.91326044,2581.0,2580.7,0.1936]
[1751984074228,4.78556751,2580.8,2580.7,0.1936]
[1751984074431,3.87507645,2580.6,2580.4,0.1936]
[1751984074748,3.87507645,2580.6,2580.0,0.001]
[1751984074749,3.87545756,2580.4,2580.0,0.001]
[1751984074933,0.9108,2580.2,2580.1,0.1936]
[1751984075627,6.9808,2580.2,2580.1,0.1936]
[1751984077334,6.07,2580.2,2580.1,0.1936]
[1751984078717,9.94566855,2580.2,2580.1,0.1936]
[1751984079049,6.07,2580.2,2580.1,0.1936]
[1751984081349,0.8938,2580.4,2580.1,0.1936]
[1751984081554,6.56018776,2580.9,2580.4,3.87529579]
[1751984081726,10.0,2580.7,2580.3,3.91417128]
[1751984081927,10.0,2580.7,2580.3,4.10777128]
[1751984082128,10.0,2580.7,2580.3,4.10786355]
[1751984082329,10.0,2580.7,2580.3,0.1936]
[1751984082536,13.8749927,2580.7,2580.3,0.1936]
[1751984082828,3.91387864,2580.6,2580.3,0.1936]
[1751984083031,3.87536815,2580.4,2580.3,0.1936]
[1751984083231,0.96452683,2580.4,2580.0,0.001]
[1751984083443,0.96452683,2580.4,2580.2,0.1936]
[1751984083940,4.83997927,2580.4,2580.2,0.1936]
[1751984084559,3.87551835,2580.3,2580.2,0.1936]
[1751984085128,16.29867662,2580.4,2580.2,0.1936]
[1751984085327,12.42328591,2580.4,2580.2,0.1936]
[1751984085620,6.066,2580.3,2580.2,0.1936]
[1751984085820,9.98024518,2580.3,2580.2,0.1936]
[1751984086081,6.066,2580.3,2580.2,0.1936]
[1751984086237,6.10472683,2580.3,2580.2,0.1936]
[1751984086936,9.98024518,2580.3,2580.2,0.1936]
[1751984087132,9.94151835,2580.3,2580.2,0.1936]
[1751984087438,3.87581876,2580.1,2580.0,0.001]
[1751984087639,9.98054559,2580.1,2580.0,0.001]
[1751984087957,9.94181876,2580.1,2580.0,0.001]
[1751984088363,10.86911876,2580.1,2580.0,0.001]
[1751984088868,12.5145584,2580.1,2580.0,0.001]
[1751984090457,16.5145584,2580.1,2580.0,0.001]
[1751984091432,5.64543964,2580.1,2580.0,0.001]
[1751984091638,10.067,2580.1,2580.0,0.001]
[1751984092064,6.067,2580.1,2580.0,0.001]
[1751984092554,6.067,2580.2,2580.0,0.001]
[1751984093039,6.067,2580.2,2580.1,0.1936]
[1751984093231,10.067,2580.2,2580.1,0.1936]
[1751984093435,6.067,2580.2,2580.1,0.1936]
[1751984094268,9.94266855,2580.2,2580.1,0.1936]
[1751984094576,3.87581876,2580.1,2580.0,0.001]
[1751984094872,4.84044559,2580.1,2580.0,0.001]
[1751984095037,5.39044559,2580.1,2580.0,0.001]
[1751984095934,9.39044559,2580.1,2580.0,0.001]
[1751984096137,11.28503066,2580.1,2580.0,0.001]
[1751984096865,11.64485053,2580.1,2580.0,0.001]
[1751984097469,14.85263863,2580.1,2580.0,0.001]
[1751984099370,8.78563863,2580.1,2580.0,0.001]
[1751984099574,15.81863863,2580.1,2580.0,0.001]
[1751984100461,16.17928091,2580.1,2580.0,0.001]
[1751984101238,3.87615485,2579.9,2579.6,0.001]
[1751984101474,10.1936,2580.0,2579.6,0.001]
[1751984101475,10.82618898,2579.8,2579.6,0.001]
[1751984101769,6.78746215,2579.7,2579.6,0.001]
[1751984102137,10.66388188,2579.7,2579.6,0.001]
[1751984102368,6.78746215,2579.7,2579.6,0.001]
[1751984102740,6.78746215,2579.7,2579.5,0.1936]
[1751984102944,6.067,2579.7,2579.5,0.1936]
[1751984103178,0.36176528,2579.6,2579.5,0.1936]
[1751984103676,0.36176528,2579.6,2579.5,0.55624764]
[1751984103853,0.3619466,2579.6,2579.5,0.55624612]
[1751984104050,0.3619466,2579.6,2579.5,4.43296641]
[1751984104245,0.3619466,2579.6,2579.5,5.26396057]
[1751984105243,6.067,2579.7,2579.6,3.87657001]
[1751984105466,0.36209403,2579.7,2579.6,4.23921613]
[1751984105653,1.516,2580.6,2579.7,0.9476]
[1751984105958,6.46785632,2580.5,2580.2,0.1936]
[1751984106157,4.0,2580.3,2580.2,0.1936]
[1751984106383,4.36212949,2580.3,2580.2,0.55632936]
[1751984106555,4.36212949,2580.3,2580.2,4.43199791]
[1751984106875,4.36212949,2580.3,2580.2,5.35753114]
[1751984107082,4.0,2580.3,2580.2,5.39628782]
[1751984107279,6.067,2580.6,2580.5,3.87521798]
[1751984107449,10.4291301,2580.6,2580.5,0.36272936]
[1751984107648,15.20609791,2580.6,2580.5,0.36272936]
[1751984107965,17.30780227,2580.6,2580.5,0.36272936]
[1751984108277,10.4291301,2580.6,2580.5,0.36272936]
[1751984108476,4.3621301,2580.6,2580.5,0.36272936]
[1751984108905,4.3621301,2580.6,2580.5,4.23794734]
[1751984109066,4.3621301,2580.6,2580.5,4.43154734]
[1751984109270,4.3621301,2580.6,2580.5,0.55632936]
[1751984109478,11.3475301,2580.6,2580.5,0.36272936]
[1751984109689,11.70944389,2580.6,2580.3,0.1936]
[1751984109998,0.36191379,2580.5,2580.4,3.87535467]
[1751984110499,0.36191379,2580.5,2580.4,4.06895467]
[1751984110699,1.7096,2581.2,2580.5,0.944]
[1751984110906,6.81246486,2581.1,2580.8,3.8746831]
[1751984111069,4.0,2580.9,2580.8,4.0682831]
[1751984111511,4.0,2580.9,2580.8,4.86260213]
[1751984111801,4.0,2580.9,2580.8,5.83050213]
[1751984112097,6.27099736,2581.7,2580.8,5.83050213]
[1751984112098,0.03872683,2581.6,2581.3,3.87387524]
[1751984112400,4.0,2581.4,2581.3,4.84191696]
[1751984112628,0.36173175,2581.4,2581.3,4.84191696]
[1751984112776,0.002,2581.7,2581.6,3.87356678]
[1751984112977,0.002,2581.7,2581.5,0.1936]
[1751984113274,4.002,2581.7,2581.5,0.1936]
[1751984113493,4.002,2581.7,2581.5,4.06720366]
[1751984113695,4.002,2581.7,2581.6,4.23512492]
[1751984113696,0.002,2581.7,2581.6,4.23512492]
[1751984113879,0.002,2581.7,2581.6,0.55515814]
[1751984115092,0.002,2581.7,2581.6,0.36155814]
[1751984115093,0.41325527,2581.7,2581.6,0.36155814]
[1751984115300,0.002,2581.7,2581.6,0.36155814]
[1751984115769,3.91414357,2581.7,2581.6,0.36155814]
[1751984115976,0.04072683,2581.7,2581.6,0.36155814]
[1751984116201,0.002,2581.7,2581.6,0.36155814]
[1751984116407,0.002,2581.7,2581.4,0.1936]
[1751984116587,0.002,2581.7,2581.5,0.36077812]
[1751984116792,0.002,2581.7,2581.5,3.87371121]
[1751984117093,0.002,2581.7,2581.6,0.1936]
[1751984118385,0.002,2581.7,2581.6,4.06716678]
[1751984119099,0.002,2581.7,2581.6,4.95067409]
[1751984119414,0.002,2581.7,2581.6,4.06716678]
[1751984121088,0.002,2581.7,2581.6,0.1936]
[1751984122477,0.002,2581.7,2581.6,4.06716678]
[1751984124888,0.002,2581.7,2581.6,0.1936]
[1751984125794,3.87541674,2581.7,2581.6,0.1936]
[1751984125992,4.77059068,2581.7,2581.6,0.1936]
[1751984126196,3.87357236,2581.6,2581.1,3.87417787]
[1751984126397,3.91229919,2581.6,2581.2,4.06773829]
[1751984126819,3.87374139,2581.5,2581.2,0.1936]
[1751984127018,3.9123615,2581.6,2581.2,4.0677404]
[1751984127204,5.10886881,2581.6,2581.2,4.0677404]
[1751984127385,1.23523414,2581.6,2581.2,4.0677404]
[1751984127586,0.89717394,2581.7,2581.3,0.03874016]
[1751984127830,6.063,2581.6,2581.5,0.1936]
[1751984128816,6.063,2581.6,2581.0,0.948]